fUST/lending_fUST_20250312
["ID","MTS","AMOUNT","RATE_DAILY","PERIOD"]
[355957990,1741734670317,-500.0,0.00020391,2]
[355957991,1741734670326,-500.0,0.00020391,2]
[355957992,1741734670336,-500.0,0.00020391,2]
[355957993,1741734670346,-241.065849,0.00020391,2]
[355957994,1741734670355,-920.25,0.00020391,2]
[355957995,1741734670365,-500.0,0.00020391,2]
[355957996,1741734670375,-1396.49,0.00020391,2]
[355957997,1741734670384,-500.0,0.00020391,2]
[355957998,1741734670394,-500.0,0.00020391,2]
[355957999,1741734670403,-500.0,0.00020391,2]
[355958000,1741734670413,-500.0,0.00020391,2]
[355958001,1741734670424,-548.11,0.00020391,2]
[355958002,1741734670434,-500.0,0.00020391,2]
[355958003,1741734670444,-647.17,0.00020391,5]
[355958004,1741734670454,-500.0,0.00020391,2]
[355958005,1741734670463,-250.23115263,0.00020391,2]
[355958006,1741734670473,-500.0,0.00020391,2]
[355958007,1741734670486,-500.0,0.00020391,2]
[355958008,1741734670497,-500.0,0.00020391,2]
[355958009,1741734670506,-282.24402308,0.00020391,2]
[355958010,1741734670517,-500.0,0.00020391,2]
[355958011,1741734670526,-500.0,0.00020391,2]
[355958012,1741734670536,-627.98,0.00020391,2]
[355958013,1741734670546,-500.0,0.00020394,2]
[355958014,1741734670556,-500.0,0.00020394,2]
[355958015,1741734670565,-500.0,0.00020394,2]
[355958016,1741734670575,-728.06,0.00020394,2]
[355958017,1741734670585,-958.86,0.00020394,2]
[355958018,1741734670595,-1101.24,0.00020394,2]
[355958019,1741734670605,-987.72,0.00020394,2]
[355958020,1741734670615,-500.0,0.00020395,2]
[355958021,1741734670625,-500.0,0.00020395,2]
[355958022,1741734670635,-500.0,0.00020395,2]
[355958023,1741734670645,-500.0,0.00020395,2]
[355958024,1741734670655,-1782.88,0.00020395,2]
[355958025,1741734670664,-559.98,0.00020395,2]
[355958026,1741734670674,-640.92,0.00020395,2]
[355958027,1741734670684,-500.0,0.00020395,2]
[355958028,1741734670693,-578.46,0.00020395,2]
[355958029,1741734670703,-1913.04,0.00020395,2]
[355958030,1741734670714,-500.0,0.00020395,2]
[355958031,1741734670724,-500.0,0.00020395,2]
[355958032,1741734670736,-888.29,0.00020395,2]
[355958033,1741734670749,-748.42,0.00020395,2]
[355958034,1741734670759,-1205.88,0.00020456,3]
[355958035,1741734670769,-500.0,0.00020484,2]
[355958036,1741734670779,-500.0,0.00020484,2]
[355958037,1741734670788,-500.0,0.00020484,2]
[355958038,1741734670799,-115102.129213,0.00020484,2]
[355958039,1741734670808,-16816.79837076,0.00020484,2]
[355958040,1741734670820,-10074.12049859,0.00020484,2]
[355958041,1741734670830,-50000.0,0.000205,2]
[355958042,1741734670840,-50000.0,0.000205,2]
[355958043,1741734670850,-7374.81,0.000205,2]
[355958044,1741734670860,-16203.0,0.000205,2]
[355958045,1741734670870,-601.79,0.00020547,2]
[355958046,1741734670879,-723.39,0.00020547,2]
[355958047,1741734670890,-500.0,0.00020547,2]
[355958048,1741734670900,-500.0,0.00020547,2]
[355958049,1741734670910,-500.0,0.00020547,2]
[355958050,1741734670920,-500.0,0.00020547,2]
[355958051,1741734670929,-500.0,0.00020547,2]
[355958052,1741734670939,-500.0,0.00020547,2]
[355958053,1741734670949,-500.0,0.00020547,2]
[355958054,1741734670959,-659.44,0.00020547,2]
[355958055,1741734670969,-500.0,0.00020547,2]
[355958056,1741734670980,-500.0,0.00020547,2]
[355958057,1741734670990,-500.0,0.00020547,2]
[355958058,1741734670999,-500.0,0.00020547,2]
[355958059,1741734671009,-1136.06,0.00020547,2]
[355958060,1741734671020,-500.0,0.00020547,2]
[355958061,1741734671030,-500.0,0.00020547,2]
[355958062,1741734671040,-711.23,0.00020547,2]
[355958063,1741734671049,-500.0,0.00020547,2]
[355958064,1741734671059,-500.0,0.00020547,2]
[355958065,1741734671069,-500.0,0.00020547,2]
[355958066,1741734671079,-710.79,0.00020547,2]
[355958067,1741734671090,-500.0,0.00020547,2]
[355958068,1741734671099,-500.0,0.00020547,2]
[355958069,1741734671110,-500.0,0.00020547,2]
[355958070,1741734671121,-587.57064476,0.00020547,2]
[355958071,1741734671131,-500.0,0.00020547,2]
[355958072,1741734671141,-500.0,0.00020547,2]
[355958073,1741734671151,-1151.95,0.00020547,2]
[355958074,1741734671161,-500.0,0.00020547,2]
[355958075,1741734671171,-500.0,0.00020547,2]
[355958076,1741734671181,-513.3,0.00020547,2]
[355958077,1741734671192,-714.14,0.00020547,2]
[355958078,1741734671201,-500.0,0.00020547,2]
[355958079,1741734671212,-500.0,0.00020547,2]
[355958080,1741734671222,-500.0,0.00020547,2]
[355958081,1741734671233,-500.0,0.00020547,2]
[355958082,1741734671242,-1290.07,0.00020547,2]
[355958083,1741734671252,-500.0,0.00020547,2]
[355958084,1741734671262,-500.0,0.00020547,2]
[355958085,1741734671272,-500.0,0.00020547,2]
[355958086,1741734671282,-4997.1,0.00020547,2]
[355958087,1741734671292,-500.0,0.00020547,2]
[355958088,1741734671302,-500.0,0.00020547,2]
[355958089,1741734671317,-500.0,0.00020547,2]
[355958090,1741734671340,-500.0,0.00020547,2]
[355958091,1741734671355,-1292.35,0.00020547,2]
[355958092,1741734671365,-605.24,0.00020547,2]
[355958093,1741734671375,-1188.37,0.00020547,2]
[355958094,1741734671386,-500.0,0.00020547,2]
[355958095,1741734671396,-500.0,0.00020547,2]
[355958096,1741734671406,-604.97,0.00020547,2]
[355958097,1741734671416,-500.0,0.00020547,2]
[355958098,1741734671425,-500.0,0.00020547,2]
[355958099,1741734671435,-1994.33,0.00020547,2]
[355958100,1741734671445,-630.73,0.00020547,2]
[355958101,1741734671455,-892.18,0.00020547,2]
[355958102,1741734671465,-500.0,0.00020547,2]
[355958103,1741734671475,-755.13,0.00020547,2]
[355958104,1741734671485,-545.99,0.00020547,2]
[355958105,1741734671496,-500.0,0.00020547,2]
[355958106,1741734671505,-1156.57,0.00020547,2]
[355958107,1741734671515,-520.62,0.00020547,2]
[355958108,1741734671525,-1451.2,0.00020547,2]
[355958109,1741734671535,-500.0,0.00020547,2]
[355958110,1741734671545,-500.0,0.00020547,2]
[355958111,1741734671555,-500.0,0.00020547,2]
[355958112,1741734671565,-621.0,0.00020547,2]
[355958113,1741734671575,-1784.22,0.00020547,2]
[355958114,1741734671585,-500.0,0.00020547,2]
[355958115,1741734671594,-500.0,0.00020547,2]
[355958116,1741734671604,-500.0,0.00020547,2]
[355958117,1741734671614,-500.0,0.00020547,2]
[355958118,1741734671624,-500.0,0.00020547,2]
[355958119,1741734671634,-500.0,0.00020547,2]
[355958120,1741734671643,-500.0,0.00020547,2]
[355958121,1741734671653,-500.0,0.00020547,2]
[355958122,1741734671663,-500.0,0.00020547,2]
[355958123,1741734671673,-500.0,0.00020547,2]
[355958124,1741734671685,-1214.06,0.00020547,2]
[355958125,1741734671695,-868.24,0.00020547,2]
[355958126,1741734671706,-500.0,0.00020547,2]
[355958127,1741734671716,-1227.37,0.00020547,2]
[355958128,1741734671726,-515.59862716,0.00020547,2]
[355958129,1741734671738,-500.0,0.00020547,2]
[355958130,1741734671750,-728.17,0.00020547,2]
[355958131,1741734671760,-1170.42,0.00020547,2]
[355958132,1741734671770,-500.0,0.00020547,2]
[355958133,1741734671781,-207.12605721,0.00020547,2]
[355958134,1741734671793,-5008.44,0.00020547,2]
[355958135,1741734671803,-500.0,0.00020547,2]
[355958136,1741734671813,-1568.17,0.00020547,2]
[355958137,1741734671824,-292.10565352,0.00020547,2]
[355958138,1741734671834,-751.65,0.00020547,2]
[355958139,1741734671844,-500.0,0.00020547,2]
[355958140,1741734671854,-595.41,0.00020547,2]
[355958141,1741734671864,-500.0,0.00020547,2]
[355958142,1741734671874,-1467.72,0.00020547,2]
[355958143,1741734671884,-653.8,0.00020547,2]
[355958144,1741734671894,-4529.09,0.00020547,2]
[355958145,1741734671904,-500.0,0.00020547,2]
[355958146,1741734671914,-500.0,0.00020547,2]
[355958147,1741734671924,-1000.0,0.00020547,7]
[355958148,1741734671935,-500.0,0.00020547,2]
[355958149,1741734671945,-500.0,0.00020547,2]
[355958150,1741734671955,-500.0,0.00020547,2]
[355958151,1741734671966,-1488.91,0.00020547,2]
[355958152,1741734671976,-2429.43,0.00020547,2]
[355958153,1741734671987,-621.67,0.00020547,2]
[355958154,1741734672213,-920.31,0.00020547,2]
[355958155,1741734672257,-500.0,0.00020547,2]
[355958156,1741734672267,-500.0,0.00020547,2]
[355958157,1741734672276,-500.0,0.00020547,2]
[355958158,1741734672286,-957.86,0.00020547,2]
[355958159,1741734672295,-502.66423407,0.00020547,2]
[355958160,1741734672305,-1110.2,0.00020547,2]
[355958161,1741734672315,-544.11,0.00020547,2]
[355958162,1741734672324,-500.0,0.00020547,2]
[355958163,1741734672334,-952.07,0.00020547,2]
[355958164,1741734672344,-576.21,0.00020547,2]
[355958165,1741734672354,-738.24,0.00020547,2]
[355958166,1741734672363,-9999.0,0.00020547,2]
[355958167,1741734672373,-853.84,0.00020547,2]
[355958168,1741734672383,-500.0,0.00020547,2]
[355958169,1741734672392,-330.30798056,0.00020547,2]
[355958170,1741734672402,-500.0,0.00020547,2]
[355958171,1741734672412,-544.34,0.00020547,2]
[355958172,1741734672422,-500.0,0.00020547,2]
[355958173,1741734672431,-500.0,0.00020547,2]
[355958174,1741734672441,-500.0,0.00020547,2]
[355958175,1741734672451,-500.0,0.00020547,2]
[355958176,1741734672460,-677.1,0.00020547,2]
[355958177,1741734672470,-4842.64,0.00020547,2]
[355958178,1741734672480,-500.0,0.00020547,2]
[355958179,1741734672490,-500.0,0.00020547,2]
[355958180,1741734672502,-500.0,0.00020547,2]
[355958181,1741734672512,-518.91,0.00020547,2]
[355958182,1741734672521,-500.0,0.00020547,2]
[355958183,1741734672532,-500.0,0.00020547,2]
[355958184,1741734672542,-4054.19,0.00020547,2]
[355958185,1741734672552,-866.55,0.00020547,2]
[355958186,1741734672561,-3046.16,0.00020547,2]
[355958187,1741734672571,-500.0,0.00020547,2]
[355958188,1741734672581,-500.0,0.00020547,2]
[355958189,1741734672591,-500.0,0.00020547,2]
[355958190,1741734672601,-151.701029,0.00020548,2]
[355958191,1741734672610,-150.0,0.000206,2]
[355958192,1741734672619,-1142.28,0.00020658,2]
[355958193,1741734672629,-3772.17,0.00020658,2]
[355958194,1741734672639,-163381.79,0.00020658,2]
[355958195,1741734672648,-2671.58,0.00020658,2]
[355958196,1741734672660,-863.38,0.00020658,2]
[355958197,1741734672670,-5706.05,0.00020658,2]
[355958198,1741734672679,-500.0,0.00020658,2]
[355958199,1741734672689,-664.48,0.00020658,2]
[355958200,1741734672700,-500.0,0.00020658,2]
[355958201,1741734672709,-3577.81,0.00020658,2]
[355958202,1741734672719,-909.63,0.00020661,2]
[355958203,1741734672729,-500.0,0.00020661,2]
[355958204,1741734672740,-1219.12,0.00020661,2]
[355958205,1741734672754,-500.0,0.00020661,2]
[355958206,1741734672765,-500.0,0.00020661,2]
[355958207,1741734672775,-735.93,0.00020661,2]
[355958208,1741734672784,-613.95,0.00020661,2]
[355958209,1741734672794,-500.0,0.00020661,2]
[355958210,1741734672804,-500.0,0.00020661,2]
[355958211,1741734672814,-617.74,0.00020661,2]
[355958212,1741734672824,-500.0,0.00020661,2]
[355958213,1741734672833,-1157.79,0.00020661,2]
[355958214,1741734672843,-610.48,0.00020661,2]
[355958215,1741734672852,-500.0,0.00020661,2]
[355958216,1741734672862,-547.18,0.00020661,2]
[355958217,1741734672872,-500.0,0.00020661,2]
[355958218,1741734672881,-374.67265506,0.00020661,2]
[355958219,1741734672891,-1437.26,0.00020661,2]
[355958220,1741734672900,-500.0,0.00020661,2]
[355958221,1741734672910,-559.53,0.00020661,2]
[355958222,1741734672919,-1184.99,0.00020661,2]
[355958223,1741734672929,-541.3,0.00020661,2]
[355958224,1741734672938,-500.0,0.00020661,2]
[355958225,1741734672948,-500.0,0.00020661,2]
[355958226,1741734672958,-500.0,0.00020661,2]
[355958227,1741734672967,-500.0,0.00020661,2]
[355958228,1741734672977,-500.0,0.00020661,2]
[355958229,1741734672988,-500.0,0.00020661,2]
[355958230,1741734672998,-500.0,0.00020661,2]
[355958231,1741734673007,-1059.92,0.00020661,2]
[355958232,1741734673017,-500.0,0.00020661,2]
[355958233,1741734673026,-677.01,0.00020661,2]
[355958234,1741734673035,-1053.17,0.00020661,2]
[355958235,1741734673046,-1149.09,0.00020661,2]
[355958236,1741734673056,-2390.45,0.00020661,2]
[355958237,1741734673066,-500.0,0.00020661,2]
[355958238,1741734673076,-673.04,0.00020661,2]
[355958239,1741734673085,-500.0,0.00020661,2]
[355958240,1741734673095,-1109.37,0.00020661,2]
[355958241,1741734673104,-1057.29,0.00020661,2]
[355958242,1741734673114,-725.09,0.00020661,2]
[355958243,1741734673124,-853.84,0.00020661,2]
[355958244,1741734673133,-536.23,0.00020661,2]
[355958245,1741734673143,-500.0,0.00020661,2]
[355958246,1741734673152,-740.86,0.00020661,2]
[355958247,1741734673162,-500.0,0.00020661,2]
[355958248,1741734673171,-500.0,0.00020661,2]
[355958249,1741734673181,-196.72406867,0.00020662,2]
[355958250,1741734673191,-500.0,0.00020665,2]
[355958251,1741734673200,-500.0,0.00020665,2]
[355958252,1741734673210,-500.0,0.00020665,2]
[355958253,1741734673219,-527.54,0.00020665,2]
[355958254,1741734673229,-500.0,0.00020665,2]
[355958255,1741734673239,-500.0,0.00020665,2]
[355958256,1741734673248,-500.0,0.00020665,2]
[355958257,1741734673258,-504.98,0.00020665,2]
[355958258,1741734673267,-500.0,0.00020665,2]
[355958259,1741734673277,-622.0,0.00020665,2]
[355958260,1741734673286,-500.0,0.00020665,2]
[355958261,1741734673295,-554.08,0.00020665,2]
[355958262,1741734673305,-500.0,0.00020665,2]
[355958263,1741734673315,-2973.52,0.00020665,2]
[355958264,1741734673325,-601.0,0.00020665,2]
[355958265,1741734673334,-500.0,0.00020665,2]
[355958266,1741734673344,-691.82,0.00020665,2]
[355958267,1741734673353,-500.0,0.00020665,2]
[355958268,1741734673363,-500.0,0.00020665,2]
[355958269,1741734673373,-608.16438298,0.00020665,2]
[355958270,1741734673382,-500.0,0.00020665,2]
[355958271,1741734673392,-500.0,0.00020665,2]
[355958272,1741734673402,-500.0,0.00020665,2]
[355958273,1741734673411,-500.0,0.00020665,2]
[355958274,1741734673421,-500.0,0.00020665,2]
[355958275,1741734673431,-500.0,0.00020665,2]
[355958276,1741734673441,-602.44,0.00020665,2]
[355958277,1741734673451,-500.0,0.00020665,2]
[355958278,1741734673460,-500.0,0.00020665,2]
[355958279,1741734673470,-820.67,0.00020665,2]
[355958280,1741734673479,-500.0,0.00020665,2]
[355958281,1741734673490,-793.66,0.00020665,2]
[355958282,1741734673499,-500.0,0.00020665,2]
[355958283,1741734673509,-590.49,0.00020665,2]
[355958284,1741734673519,-500.0,0.00020665,2]
[355958285,1741734673528,-500.0,0.00020665,2]
[355958286,1741734673538,-500.0,0.00020665,2]
[355958287,1741734673547,-500.0,0.00020665,2]
[355958288,1741734673557,-535.91,0.00020665,2]
[355958289,1741734673567,-542.28534563,0.00020665,2]
[355958290,1741734673576,-500.0,0.00020665,2]
[355958291,1741734673585,-500.0,0.00020665,2]
[355958292,1741734673595,-500.0,0.00020665,2]
[355958293,1741734673604,-500.0,0.00020665,2]
[355958294,1741734673614,-500.0,0.00020665,2]
[355958295,1741734673623,-500.0,0.00020665,2]
[355958296,1741734673633,-500.0,0.00020665,2]
[355958297,1741734673644,-500.0,0.00020665,2]
[355958298,1741734673654,-654.51,0.00020665,2]
[355958299,1741734673664,-500.0,0.00020665,2]
[355958300,1741734673673,-500.0,0.00020665,2]
[355958301,1741734673683,-500.0,0.00020665,2]
[355958302,1741734673693,-864.43,0.00020665,2]
[355958303,1741734673703,-381.27391217,0.00020665,2]
[355958304,1741734673712,-500.0,0.00020665,2]
[355958305,1741734673722,-1196.8,0.00020665,2]
[355958306,1741734673732,-500.0,0.00020665,2]
[355958307,1741734673746,-500.0,0.00020665,2]
[355958308,1741734673756,-572.18915907,0.00020665,2]
[355958309,1741734673766,-500.0,0.00020665,2]
[355958310,1741734673776,-920.25,0.00020665,2]
[355958311,1741734673787,-500.0,0.00020665,2]
[355958312,1741734673796,-1396.49,0.00020665,2]
[355958313,1741734673806,-565.76996955,0.00020665,2]
[355958314,1741734673815,-500.0,0.00020665,2]
[355958315,1741734673828,-500.0,0.00020665,2]
[355958316,1741734673838,-500.0,0.00020665,2]
[355958317,1741734673847,-548.11,0.00020665,2]
[355958318,1741734673857,-500.0,0.00020665,2]
[355958319,1741734673866,-647.17,0.00020665,5]
[355958320,1741734673876,-500.0,0.00020665,2]
[355958321,1741734673885,-230.72324505,0.00020665,2]
[355958322,1741734673894,-500.0,0.00020665,2]
[355958323,1741734673903,-500.0,0.00020665,2]
[355958324,1741734673914,-500.0,0.00020665,2]
[355958325,1741734673924,-500.0,0.00020665,2]
[355958326,1741734673934,-627.98,0.00020665,2]
[355958327,1741734673943,-500.0,0.00020668,2]
[355958328,1741734673953,-500.0,0.00020668,2]
[355958329,1741734673963,-500.0,0.00020668,2]
[355958330,1741734673973,-728.06,0.00020668,2]
[355958331,1741734673983,-958.86,0.00020668,2]
[355958332,1741734673992,-1101.24,0.00020668,2]
[355958333,1741734674002,-987.72,0.00020668,2]
[355958334,1741734674011,-500.0,0.00020669,2]
[355958335,1741734674021,-500.0,0.00020669,2]
[355958336,1741734674030,-500.0,0.00020669,2]
[355958337,1741734674040,-1782.88,0.00020669,2]
[355958338,1741734674050,-559.98,0.00020669,2]
[355958339,1741734674060,-640.92,0.00020669,2]
[355958340,1741734674070,-500.0,0.00020669,2]
[355958341,1741734674081,-578.46,0.00020669,2]
[355958342,1741734674091,-1913.04,0.00020669,2]
[355958343,1741734674101,-500.0,0.00020669,2]
[355958344,1741734674111,-500.0,0.00020669,2]
[355958345,1741734674120,-888.29,0.00020669,2]
[355958346,1741734674130,-748.42,0.00020669,2]
[355958347,1741734674139,-9581.77827979,0.00020724,2]
[355958348,1741734674149,-500.0,0.00020758,2]
[355958349,1741734674159,-500.0,0.00020758,2]
[355958350,1741734674168,-500.0,0.00020758,2]
[355958351,1741734674178,-420.0,0.00020812,2]
[355958352,1741734674189,-601.79,0.00020821,2]
[355958353,1741734674198,-723.39,0.00020821,2]
[355958354,1741734674208,-500.0,0.00020821,2]
[355958355,1741734674218,-500.0,0.00020821,2]
[355958356,1741734674228,-500.0,0.00020821,2]
[355958357,1741734674238,-500.0,0.00020821,2]
[355958358,1741734674248,-500.0,0.00020821,2]
[355958359,1741734674257,-500.0,0.00020821,2]
[355958360,1741734674267,-500.0,0.00020821,2]
[355958361,1741734674277,-659.44,0.00020821,2]
[355958362,1741734674288,-500.0,0.00020821,2]
[355958363,1741734674298,-500.0,0.00020821,2]
[355958364,1741734674307,-500.0,0.00020821,2]
[355958365,1741734674317,-500.0,0.00020821,2]
[355958366,1741734674327,-1136.06,0.00020821,2]
[355958367,1741734674336,-615.96741524,0.00020821,2]
[355958368,1741734674346,-500.0,0.00020821,2]
[355958369,1741734674356,-711.23,0.00020821,2]
[355958370,1741734674366,-500.0,0.00020821,2]
[355958371,1741734674376,-500.0,0.00020821,2]
[355958372,1741734674386,-500.0,0.00020821,2]
[355958373,1741734674396,-710.79,0.00020821,2]
[355958374,1741734674406,-500.0,0.00020821,2]
[355958375,1741734674416,-500.0,0.00020821,2]
[355958376,1741734674425,-500.0,0.00020821,2]
[355958377,1741734674435,-500.0,0.00020821,2]
[355958378,1741734674444,-500.0,0.00020821,2]
[355958379,1741734674454,-1151.95,0.00020821,2]
[355958380,1741734674463,-500.0,0.00020821,2]
[355958381,1741734674473,-500.0,0.00020821,2]
[355958382,1741734674482,-513.3,0.00020821,2]
[355958383,1741734674491,-714.14,0.00020821,2]
[355958384,1741734674501,-500.0,0.00020821,2]
[355958385,1741734674511,-500.0,0.00020821,2]
[355958386,1741734674520,-500.0,0.00020821,2]
[355958387,1741734674530,-500.0,0.00020821,2]
[355958388,1741734674539,-1290.07,0.00020821,2]
[355958389,1741734674549,-500.0,0.00020821,2]
[355958390,1741734674558,-500.0,0.00020821,2]
[355958391,1741734674568,-500.0,0.00020821,2]
[355958392,1741734674578,-4997.1,0.00020821,2]
[355958393,1741734674678,-500.0,0.00020821,2]
[355958394,1741734674688,-500.0,0.00020821,2]
[355958395,1741734674698,-500.0,0.00020821,2]
[355958396,1741734674707,-500.0,0.00020821,2]
[355958397,1741734674717,-1292.35,0.00020821,2]
[355958398,1741734674727,-605.24,0.00020821,2]
[355958399,1741734674739,-1188.37,0.00020821,2]
[355958400,1741734674753,-500.0,0.00020821,2]
[355958401,1741734674763,-500.0,0.00020821,2]
[355958402,1741734674773,-604.97,0.00020821,2]
[355958403,1741734674783,-500.0,0.00020821,2]
[355958404,1741734674795,-500.0,0.00020821,2]
[355958405,1741734674805,-1994.33,0.00020821,2]
[355958406,1741734674814,-630.73,0.00020821,2]
[355958407,1741734674825,-892.18,0.00020821,2]
[355958408,1741734674835,-500.0,0.00020821,2]
[355958409,1741734674845,-755.13,0.00020821,2]
[355958410,1741734674855,-545.99,0.00020821,2]
[355958411,1741734674864,-500.0,0.00020821,2]
[355958412,1741734674874,-1156.57,0.00020821,2]
[355958413,1741734674883,-520.62,0.00020821,2]
[355958414,1741734674893,-1451.2,0.00020821,2]
[355958415,1741734674903,-500.0,0.00020821,2]
[355958416,1741734674912,-500.0,0.00020821,2]
[355958417,1741734674923,-500.0,0.00020821,2]
[355958418,1741734674933,-621.0,0.00020821,2]
[355958419,1741734674942,-1784.22,0.00020821,2]
[355958420,1741734674952,-500.0,0.00020821,2]
[355958421,1741734674961,-500.0,0.00020821,2]
[355958422,1741734674971,-500.0,0.00020821,2]
[355958423,1741734674980,-500.0,0.00020821,2]
[355958424,1741734674990,-500.0,0.00020821,2]
[355958425,1741734675000,-500.0,0.00020821,2]
[355958426,1741734675010,-500.0,0.00020821,2]
[355958427,1741734675019,-500.0,0.00020821,2]
[355958428,1741734675029,-500.0,0.00020821,2]
[355958429,1741734675039,-500.0,0.00020821,2]
[355958430,1741734675049,-1214.06,0.00020821,2]
[355958431,1741734675059,-868.24,0.00020821,2]
[355958432,1741734675070,-500.0,0.00020821,2]
[355958433,1741734675080,-1227.37,0.00020821,2]
[355958434,1741734675091,-500.0,0.00020821,2]
[355958435,1741734675101,-728.17,0.00020821,2]
[355958436,1741734675112,-1170.42,0.00020821,2]
[355958437,1741734675122,-500.0,0.00020821,2]
[355958438,1741734675132,-5008.44,0.00020821,2]
[355958439,1741734675142,-500.0,0.00020821,2]
[355958440,1741734675152,-1568.17,0.00020821,2]
[355958441,1741734675162,-751.65,0.00020821,2]
[355958442,1741734675171,-500.0,0.00020821,2]
[355958443,1741734675182,-595.41,0.00020821,2]
[355958444,1741734675193,-500.0,0.00020821,2]
[355958445,1741734675203,-1467.72,0.00020821,2]
[355958446,1741734675213,-653.8,0.00020821,2]
[355958447,1741734675223,-4529.09,0.00020821,2]
[355958448,1741734675233,-500.0,0.00020821,2]
[355958449,1741734675243,-500.0,0.00020821,2]
[355958450,1741734675253,-1000.0,0.00020821,7]
[355958451,1741734675263,-500.0,0.00020821,2]
[355958452,1741734675273,-500.0,0.00020821,2]
[355958453,1741734675283,-500.0,0.00020821,2]
[355958454,1741734675293,-1488.91,0.00020821,2]
[355958455,1741734675303,-2429.43,0.00020821,2]
[355958456,1741734675312,-621.67,0.00020821,2]
[355958457,1741734675322,-920.31,0.00020821,2]
[355958458,1741734675331,-500.0,0.00020821,2]
[355958459,1741734675341,-500.0,0.00020821,2]
[355958460,1741734675351,-500.0,0.00020821,2]
[355958461,1741734675360,-957.86,0.00020821,2]
[355958462,1741734675369,-1110.2,0.00020821,2]
[355958463,1741734675379,-544.11,0.00020821,2]
[355958464,1741734675390,-500.0,0.00020821,2]
[355958465,1741734675400,-952.07,0.00020821,2]
[355958466,1741734675409,-576.21,0.00020821,2]
[355958467,1741734675419,-738.24,0.00020821,2]
[355958468,1741734675429,-9999.0,0.00020821,2]
[355958469,1741734675438,-853.84,0.00020821,2]
[355958470,1741734675448,-500.0,0.00020821,2]
[355958471,1741734675457,-645.00205666,0.00020821,2]
[355958472,1741734675468,-544.34,0.00020821,2]
[355958473,1741734675478,-500.0,0.00020821,2]
[355958474,1741734675489,-500.0,0.00020821,2]
[355958475,1741734675500,-500.0,0.00020821,2]
[355958476,1741734675510,-500.0,0.00020821,2]
[355958477,1741734675520,-677.1,0.00020821,2]
[355958478,1741734675530,-4842.64,0.00020821,2]
[355958479,1741734675539,-500.0,0.00020821,2]
[355958480,1741734675549,-500.0,0.00020821,2]
[355958481,1741734675559,-565.49726274,0.00020821,2]
[355958482,1741734675568,-518.91,0.00020821,2]
[355958483,1741734675578,-166.05407739,0.00020821,2]
[355958484,1741734675588,-500.0,0.00020821,2]
[355958485,1741734675598,-4054.19,0.00020821,2]
[355958486,1741734675608,-866.55,0.00020821,2]
[355958487,1741734675617,-3046.16,0.00020821,2]
[355958488,1741734675627,-500.0,0.00020821,2]
[355958489,1741734675637,-500.0,0.00020821,2]